bitfinex/quotes_ETHUSD_20250328
["timestamp","ask_amount","ask_price","bid_price","bid_amount"]
[1743137465159,8.111,1936.8,1936.7,5.16342]
[1743137465362,8.111,1936.8,1936.4,10.32799]
[1743137465552,8.111,1936.8,1936.4,5.16396]
[1743137465756,1.04124933,1937.1,1936.3,5.16447]
[1743137465941,3.0,1936.9,1936.2,5.16449]
[1743137466139,0.85,1936.8,1936.2,5.16453]
[1743137466341,0.3,1936.8,1936.3,5.16434]
[1743137466560,0.3,1936.8,1936.0,6.74144]
[1743137466753,0.55,1936.7,1936.1,0.051643]
[1743137466959,0.55,1936.7,1936.1,5.216603]
[1743137467846,0.55,1936.7,1936.2,5.16454]
[1743137468167,0.55,1936.5,1935.4,5.16689]
[1743137468372,8.048,1936.4,1936.0,5.16506]
[1743137468679,8.048,1936.4,1936.1,5.16489]
[1743137468876,8.048,1936.4,1936.0,10.33021]
[1743137469086,1.04683965,1936.3,1936.2,5.16474]
[1743137469483,8.029,1936.3,1936.1,5.16491]
[1743137469649,8.029,1936.3,1935.9,5.16539]
[1743137469851,8.029,1936.3,1936.1,5.16501]
[1743137470051,8.029,1936.3,1935.6,5.21779414]
[1743137470252,8.029,1936.3,1935.9,5.16542]
[1743137470556,8.029,1936.3,1936.0,5.16509]
[1743137470770,8.93507251,1936.3,1935.8,5.16568]
[1743137470969,8.93507251,1936.3,1935.8,10.33138]
[1743137471249,8.93507251,1936.3,1935.3,1.5762]
[1743137471250,8.93507251,1936.3,1936.0,5.16527]
[1743137471455,8.93507251,1936.3,1936.0,5.16504]
[1743137471657,8.029,1936.3,1936.1,5.16481]
[1743137471864,1.03172507,1936.4,1936.2,5.21639625]
[1743137472053,1.03172507,1936.4,1936.3,5.16448]
[1743137472377,3.3,1936.8,1936.3,10.32875]
[1743137472565,7.965,1936.4,1936.2,5.16456]
[1743137472893,7.965,1936.4,1936.3,5.16448]
[1743137473458,7.934,1936.4,1936.3,10.32886]
[1743137473756,7.934,1936.4,1936.2,5.16471]
[1743137474065,8.7274,1936.4,1935.7,5.16589]
[1743137474265,8.7274,1936.4,1935.8,5.16572]
[1743137474664,3.0,1936.3,1935.4,11.93109]
[1743137474864,0.85,1936.2,1935.5,5.16651]
[1743137475063,0.85,1936.2,1935.4,1.5976]
[1743137475389,3.0,1936.1,1935.1,5.1675]
[1743137475562,0.55,1935.9,1935.2,5.16725]
[1743137475888,0.55,1935.9,1935.2,5.16726]
[1743137476056,0.55,1935.9,1935.1,5.1675]
[1743137476252,7.70371889,1935.9,1934.4,1.5976]
[1743137476457,0.55,1935.7,1934.6,5.16891]
[1743137476658,4.58133232,1935.4,1934.2,5.16984]
[1743137476859,3.55,1935.2,1934.4,5.16942]
[1743137477062,0.355,1935.1,1934.4,5.16942]
[1743137477261,0.355,1935.1,1934.3,5.16958]
[1743137477982,0.355,1935.1,1934.1,6.81788]
[1743137478156,0.37872824,1935.7,1934.6,1.5504]
[1743137478357,7.938,1935.6,1935.4,5.16674]
[1743137478676,7.938,1935.6,1935.4,5.1667]
[1743137478984,7.938,1935.6,1934.3,32.49867]
[1743137479190,7.938,1935.6,1934.6,7.28968189]
[1743137479397,1.05343826,1935.7,1934.7,0.05166551]
[1743137479558,7.929,1935.6,1935.1,5.16758]
[1743137479890,1.05343826,1935.7,1935.6,5.16635]
[1743137480065,8.98243826,1935.7,1935.6,5.21800391]
[1743137480265,27.332,1936.8,1936.1,5.16496]
[1743137480588,10.6632,1936.7,1935.9,5.1654]
[1743137480769,1.04888151,1936.4,1936.0,5.16517]
[1743137480954,1.04888151,1936.4,1936.1,5.165]
[1743137481158,1.04888151,1936.4,1936.1,5.16485]
[1743137481159,7.93,1936.3,1936.1,5.16485]
[1743137481359,2.7332,1936.7,1936.3,5.16429]
[1743137481555,7.93,1936.6,1936.0,5.16518]
[1743137481759,7.93,1936.5,1935.9,5.16533]
[1743137481962,7.93,1936.4,1936.0,5.16508]
[1743137482265,7.93,1936.4,1936.1,10.38148367]
[1743137482591,7.93,1936.3,1936.2,5.16461]
[1743137483168,7.93,1936.3,1935.9,5.16536]
[1743137483499,7.93,1936.3,1936.0,5.16508]
[1743137483986,1.04660314,1936.6,1936.0,10.33015]
[1743137484159,7.93,1936.5,1936.0,10.33024]
[1743137484356,8.82766031,1936.5,1936.0,5.16517]
[1743137484565,7.93,1936.5,1935.8,6.81701]
[1743137484778,7.93,1936.5,1936.2,5.16456]
[1743137484991,7.93,1936.5,1936.2,10.32918]
[1743137485160,7.93,1936.5,1936.3,5.16432]
[1743137485357,7.93,1936.5,1936.4,5.16422]
[1743137485703,7.929,1936.5,1936.4,5.16422]
[1743137485859,8.82656031,1936.5,1935.9,5.16534]
[1743137486056,8.82656031,1936.5,1935.8,5.16561]
[1743137486299,8.82656031,1936.5,1935.9,10.3308]
[1743137486591,3.0,1936.4,1935.6,5.16632]
[1743137486806,0.88265603,1936.4,1935.5,1.6271]
[1743137487101,1.04660314,1936.6,1936.1,5.16478]
[1743137487392,7.929,1936.3,1936.1,10.32964]
[1743137487591,7.929,1936.3,1935.9,5.1654]
[1743137487783,7.929,1936.3,1936.1,5.16489]
[1743137487972,7.929,1936.3,1936.1,5.16486]
[1743137488167,7.929,1936.3,1936.2,5.16475]
[1743137488382,7.929,1936.3,1936.1,10.32971]
[1743137488579,7.929,1936.3,1935.9,5.16531]
[1743137488994,8.7219,1936.3,1935.5,6.79371]
[1743137489167,8.7219,1936.3,1935.5,6.79355]
[1743137489364,8.7219,1936.3,1935.7,5.16589]
[1743137489568,3.0,1936.2,1935.1,1.5733]
[1743137489767,0.55,1936.1,1935.4,5.16684]
[1743137489994,0.85,1936.1,1935.1,1.5733]
[1743137490194,0.85,1936.1,1935.2,5.16716]
[1743137490372,0.85,1936.1,1935.3,0.05166294]
[1743137490572,0.85,1936.1,1935.3,5.21878294]
[1743137490774,1.0356858,1935.6,1935.5,5.1664]
[1743137491004,7.928,1935.7,1935.6,5.16624]
[1743137491314,0.55,1936.3,1935.6,5.16617]
[1743137491483,7.928,1936.2,1935.6,10.3323]
[1743137491669,8.7758,1936.2,1935.1,6.74083]
[1743137491874,8.7758,1936.2,1935.4,5.16675]
[1743137492201,1.05732298,1935.9,1935.1,1.5733]
[1743137492586,1.05732298,1935.9,1935.1,5.16764]
[1743137492788,1.05732298,1935.9,1935.2,5.16739]
[1743137492995,1.05732298,1935.9,1935.2,5.16727]
[1743137493183,1.05732298,1935.9,1935.4,5.16677]
[1743137493591,1.05732298,1935.9,1935.3,5.21875824]
[1743137494008,1.05732298,1935.9,1935.3,10.38573824]
[1743137494279,7.928,1935.8,1935.4,5.1667]
[1743137494476,7.928,1935.8,1935.5,0.051658]
[1743137494724,7.928,1935.7,1935.6,5.16625]
[1743137495869,27.328,1936.5,1935.7,10.33192]
[1743137496073,10.6618,1936.4,1935.8,5.16561]
[1743137496299,1.04210471,1936.2,1935.9,0.05164943]
[1743137496500,1.04210471,1936.2,1935.8,5.16561]
[1743137496686,1.04210471,1936.2,1935.4,6.69317]
[1743137496892,1.04210471,1936.2,1935.4,6.69297]
[1743137497070,3.0,1936.3,1935.4,5.16667]
[1743137497275,0.3,1936.2,1935.5,5.16659]
[1743137497878,0.3,1936.2,1935.1,1.6506]
[1743137498078,0.3,1936.2,1935.5,5.16659]
[1743137498279,0.3,1936.2,1935.5,10.33307]
[1743137498474,0.3,1936.2,1935.4,5.16685]
[1743137498882,1.01859236,1935.9,1935.4,5.16685]
[1743137499081,7.928,1935.8,1935.5,5.16662]
[1743137499505,7.928,1935.8,1935.4,5.16675]
[1743137499711,8.82265924,1935.8,1935.3,5.16703]
[1743137499909,7.928,1935.8,1935.4,5.21851207]
[1743137500109,7.928,1935.8,1935.5,5.16656]
[1743137500711,7.928,1935.8,1935.5,10.33305]
[1743137500886,7.928,1935.8,1935.5,5.16649]
[1743137501082,7.928,1935.8,1935.6,0.05165784]
[1743137501319,1.01859236,1935.9,1935.7,5.16608]
[1743137501502,1.01859236,1935.9,1935.8,5.16582]
[1743137501714,7.928,1935.9,1935.8,5.16582]
[1743137502238,7.928,1935.9,1935.1,1.6506]
[1743137502414,8.7208,1935.9,1935.5,5.16658]
[1743137502581,8.7208,1935.9,1935.6,0.05165681]
[1743137502989,8.7208,1935.9,1935.5,0.05165683]
[1743137503289,8.7208,1935.9,1935.5,5.21823683]
[1743137503695,9.77848383,1935.9,1935.5,0.05165683]
[1743137504098,0.97784838,1935.8,1935.1,11.98582]
[1743137504315,0.97784838,1935.8,1935.2,5.16718]
[1743137504518,3.97784838,1935.8,1934.7,1.5751]
[1743137504717,8.98568383,1935.9,1934.9,5.16822]
[1743137504899,8.98568383,1935.9,1935.3,5.16709]
[1743137505095,7.70371889,1935.8,1934.5,5.16923]
[1743137505308,7.70371889,1935.8,1934.1,1.6395]
[1743137505620,0.55,1935.6,1934.7,5.16873]
[1743137505793,0.55,1935.6,1934.5,5.16912]
[1743137505993,0.55,1935.6,1934.6,5.16901]
[1743137506588,1.03790533,1935.0,1934.5,5.16912]
[1743137506809,7.927,1934.9,1934.4,5.16952]
[1743137507010,7.927,1934.9,1934.1,1.6395]
[1743137507204,7.927,1934.9,1934.6,5.16881]
[1743137507400,1.03790533,1935.0,1934.7,5.22043064]
[1743137507722,7.928,1935.4,1935.3,5.16715]
[1743137507891,3.75749743,1936.3,1935.5,5.16651]
[1743137508095,10.928,1936.2,1935.6,0.05165804]
[1743137508293,7.928,1936.1,1935.6,5.16616]
[1743137508493,0.37574974,1936.2,1935.7,0.05165032]
[1743137508710,3.75749743,1936.3,1935.7,5.1659]
[1743137508920,1.03247327,1936.0,1935.9,5.16555]
[1743137509222,8.96047327,1936.0,1935.7,5.16605]
[1743137509524,8.96047327,1936.0,1935.5,10.3329]
[1743137509719,8.96047327,1936.0,1935.5,5.16639]
[1743137509938,8.96047327,1936.0,1935.6,5.16619]
[1743137510140,8.96047327,1936.0,1935.5,5.16661]
[1743137510439,9.8565206,1936.0,1935.5,5.16649]
[1743137510647,9.8565206,1936.0,1935.4,5.16684]
[1743137510931,9.8565206,1936.0,1935.1,5.16749]
[1743137511096,3.0,1935.9,1935.0,5.16778]
[1743137511424,0.3,1935.8,1935.0,5.16773]
[1743137511605,0.3,1935.8,1934.8,6.68315]
[1743137511801,0.55,1935.7,1934.4,1.5149]
[1743137512120,0.55,1935.7,1934.9,5.16807]
[1743137512741,0.55,1935.7,1934.8,5.16847]
[1743137512897,0.55,1935.7,1934.8,5.22004094]
[1743137513098,0.55,1935.7,1934.9,5.16821]
[1743137514007,0.55,1935.7,1934.8,5.16844]
[1743137514322,3.55,1935.7,1934.7,5.16851]
[1743137514493,0.55,1935.5,1934.7,5.16851]
[1743137514694,7.926,1935.4,1934.6,5.16896]
[1743137514908,1.06009519,1935.2,1934.4,6.6844]
[1743137515094,1.06009519,1935.2,1934.4,5.16944]
[1743137515316,1.05872615,1935.2,1934.6,5.169]
[1743137515505,3.0,1935.3,1934.7,0.05168117]
[1743137515693,8.226,1935.2,1934.5,5.22082118]
[1743137515900,0.3,1935.2,1934.5,10.38996118]
[1743137516098,7.926,1935.1,1934.4,10.33886]
[1743137516300,7.926,1935.1,1934.5,5.16918]
[1743137516505,7.926,1935.1,1934.4,5.16936]
[1743137516994,7.926,1935.1,1934.2,5.16985]
[1743137517200,1.04217488,1934.8,1934.3,5.16977]
[1743137517427,1.04217488,1934.8,1934.4,0.05168588]
[1743137518002,1.04217488,1934.8,1934.1,5.2202]
[1743137518205,1.04217488,1934.8,1934.1,5.22033]
[1743137518419,1.04217488,1934.8,1934.1,5.22025]
[1743137518732,1.04217488,1934.8,1934.1,0.05]
[1743137519930,0.55,1934.8,1934.1,0.05]
[1743137520140,3.0,1934.9,1934.1,0.10169445]
[1743137520328,3.0,1935.4,1934.4,5.16953]
[1743137520506,0.355,1935.6,1934.1,5.22011]
[1743137520507,7.15371889,1935.2,1934.1,5.22011]
[1743137520826,1.03709918,1934.5,1934.2,0.05169499]
[1743137521132,7.926,1934.4,1934.2,0.05169499]
[1743137521300,7.926,1934.4,1934.3,5.16982]
[1743137521511,7.926,1934.4,1934.2,5.16984]
[1743137521740,7.926,1934.4,1934.3,5.16982]
[1743137522409,7.926,1934.4,1934.2,5.16984]
[1743137522810,7.926,1934.4,1934.2,10.33982]
[1743137523012,7.926,1934.4,1934.3,5.16982]
[1743137523311,7.926,1934.4,1934.2,5.16984]
[1743137523512,7.926,1934.4,1934.3,5.16982]
[1743137524234,7.926,1934.4,1934.2,5.16997]
[1743137524422,7.926,1934.4,1934.3,5.16982]
[1743137524624,8.7186,1934.4,1934.1,0.05]
[1743137524824,8.7186,1934.4,1934.1,5.22024]
[1743137525026,7.926,1934.4,1934.1,0.05]
[1743137525447,7.926,1934.4,1934.1,5.22035]
[1743137525747,7.926,1934.4,1934.1,0.05]
[1743137527214,1.02138726,1934.2,1934.1,0.05]
[1743137528249,1.42352599,1934.2,1934.1,0.05]
[1743137528415,1.02138726,1934.2,1934.1,0.05]
[1743137529949,1.02138726,1934.2,1934.1,5.22036]
[1743137529950,8.94638726,1934.2,1934.1,5.22036]
[1743137530133,1.02138726,1934.2,1934.1,5.22036]
[1743137530337,1.02138726,1934.2,1934.1,5.27205048]
[1743137530652,7.925,1934.4,1934.3,5.16982]
[1743137531428,7.924,1935.0,1934.9,5.16822]
[1743137531619,1.06970284,1935.5,1935.1,5.16748]
[1743137531820,7.924,1935.4,1934.4,1.5679]
[1743137532021,12.07771889,1935.4,1934.5,5.16925]
[1743137532340,3.7924,1935.3,1934.4,5.16938]
[1743137532521,1.05982356,1935.2,1934.3,5.16967]
[1743137533150,1.05982356,1935.2,1934.1,6.78826]
[1743137533354,0.48522236,1935.2,1934.5,5.16911]
[1743137533557,1.01413615,1934.7,1934.6,0.05168248]
[1743137533724,8.93713615,1934.7,1934.5,5.16911]
[1743137534123,8.93713615,1934.7,1934.6,5.16902]
[1743137534624,1.03485606,1935.0,1934.8,5.16849]
[1743137534854,7.923,1935.4,1934.8,10.33698]
[1743137535122,1.01517214,1935.2,1934.7,1.5454]
[1743137535323,1.01517214,1935.2,1934.4,1.5454]
[1743137535522,1.01517214,1935.2,1934.1,6.76573]
[1743137535757,3.0,1935.0,1934.2,5.16994]
[1743137535955,0.3,1934.9,1934.1,0.05]
[1743137536266,7.922,1934.8,1934.2,5.16989]
[1743137536956,7.922,1934.8,1934.2,5.16986]
[1743137537251,7.922,1934.8,1934.3,0.05168989]
[1743137537423,7.922,1934.8,1934.5,5.16917]
[1743137537624,8.7142,1934.8,1934.4,5.1695]
[1743137537841,7.922,1934.8,1934.5,5.16916]
[1743137538126,7.922,1934.8,1934.5,5.16913]
[1743137538322,7.922,1934.8,1934.5,5.16912]
[1743137538640,1.02314931,1934.6,1934.3,5.16962]
[1743137538844,1.02314931,1934.6,1934.2,5.17003]
[1743137539242,1.02314931,1934.6,1934.3,5.16965]
[1743137539638,1.02314931,1934.6,1934.4,0.05168667]
[1743137539837,1.02314931,1934.6,1934.3,5.16965]
[1743137540348,8.94314931,1934.6,1934.5,5.16929]
[1743137540730,8.94314931,1934.6,1934.4,5.16939]
[1743137540930,8.94314931,1934.6,1934.5,5.16929]
[1743137541126,0.55,1935.5,1934.7,5.16857]
[1743137541347,0.55,1935.5,1934.8,0.05167879]
[1743137541557,3.0,1935.2,1934.7,5.16857]
[1743137541761,3.0,1935.2,1934.0,1.5443]
[1743137542052,0.55,1935.1,1934.3,5.16969]
[1743137542259,1.05686969,1934.9,1934.2,10.33987]
[1743137542456,1.05686969,1934.9,1934.0,5.17049]
[1743137542686,1.05686969,1934.9,1934.1,5.27192819]
[1743137542828,1.05686969,1934.9,1934.1,5.22024]
[1743137543030,1.05686969,1934.9,1934.1,0.05]
[1743137543358,0.55,1934.8,1934.1,0.05]
[1743137543529,0.46068697,1934.8,1934.3,5.1696]
[1743137543725,7.919,1934.7,1934.2,5.16998]
[1743137544141,1.01821384,1934.5,1934.2,5.16998]
[1743137544358,1.01821384,1934.5,1934.1,5.22033]
[1743137544675,1.01821384,1934.5,1934.2,5.17005]
[1743137544843,1.01821384,1934.5,1934.2,5.17009]
[1743137545169,1.01821384,1934.5,1934.2,5.16988]
[1743137545471,1.01821384,1934.5,1934.3,5.16971]
[1743137545634,1.01821384,1934.5,1934.1,10.39032]
[1743137545980,1.01821384,1934.5,1934.1,5.22011]
[1743137546154,1.01821384,1934.5,1934.1,0.05]
[1743137546364,1.01821384,1934.5,1934.1,5.27203297]
[1743137546572,1.01821384,1934.5,1934.1,5.22034]
[1743137546751,1.01821384,1934.5,1934.2,5.22174474]
[1743137546953,1.01821384,1934.5,1934.2,0.05169467]
[1743137547158,1.01821384,1934.5,1934.4,5.16956]
[1743137547358,1.01821384,1934.5,1934.4,6.25517198]
[1743137547558,7.917,1934.7,1934.6,5.16902]
[1743137548185,8.93106844,1934.7,1934.6,5.16902]
[1743137548387,8.93106844,1934.7,1934.1,0.05]
[1743137548388,8.93106844,1934.7,1934.1,5.22014]
[1743137548686,8.93106844,1934.7,1934.3,5.16979]
[1743137548882,8.93106844,1934.7,1934.1,0.05]
[1743137549081,9.82417528,1934.7,1934.1,0.05]
[1743137549451,3.0,1934.6,1934.1,0.05]
[1743137551974,1.03601922,1934.2,1934.1,0.05]
[1743137553173,1.03601922,1934.2,1934.1,5.22036]
[1743137553482,7.914,1934.9,1934.3,5.16965]
[1743137553683,7.914,1934.9,1934.2,5.16996]
[1743137553684,1.05550028,1934.6,1934.2,5.16996]
[1743137553886,1.05550028,1934.6,1934.3,5.16957]
[1743137554060,1.05550028,1934.6,1934.4,5.16943]
[1743137554259,1.05550028,1934.6,1934.3,5.16957]
[1743137555088,1.05550028,1934.6,1934.1,12.00306]
[1743137555263,1.05550028,1934.6,1934.1,0.05]
[1743137555791,1.05550028,1934.6,1934.1,5.22023]
[1743137556160,1.05550028,1934.6,1934.1,0.05]
[1743137556355,1.05550028,1934.6,1934.1,5.22016]
[1743137556576,7.912,1934.5,1934.1,5.22016]
[1743137556793,0.7912,1934.4,1934.1,0.05]
[1743137556967,7.912,1934.5,1934.2,5.16997]
[1743137557167,7.912,1934.5,1934.2,5.22166377]
[1743137557361,7.912,1934.5,1934.2,0.05169377]
[1743137557790,7.912,1934.5,1934.1,5.2202]
[1743137558178,7.912,1934.5,1934.2,5.16998]
[1743137558561,7.912,1934.5,1934.1,0.05]
[1743137558788,8.7032,1934.5,1934.1,0.05]
[1743137558977,8.7032,1934.5,1934.1,0.10169362]
[1743137559292,7.912,1934.5,1934.1,0.10169362]
[1743137559496,7.912,1934.5,1934.1,0.05]
[1743137559683,1.03385571,1934.3,1934.1,0.05]
[1743137562274,1.03385571,1934.3,1934.2,5.17009]
[1743137562463,7.909,1934.5,1934.3,5.16963]
[1743137562790,1.02753528,1934.7,1934.5,5.16925]
[1743137562992,1.02753528,1934.7,1934.6,0.05168456]
[1743137563182,1.02753528,1934.7,1934.6,7.31037902]
[1743137563387,2.41801558,1935.3,1935.2,5.16742]
[1743137563388,1.07469661,1935.3,1935.2,5.16742]
[1743137563592,1.07469661,1935.3,1934.9,5.16807]
[1743137563770,1.07469661,1935.3,1934.7,5.16854]
[1743137563975,1.97306627,1935.3,1934.8,5.16847]
[1743137564173,0.89836966,1935.3,1934.8,5.16847]
[1743137564378,0.89836966,1935.3,1934.6,6.7364]
[1743137564580,0.89836966,1935.3,1934.7,5.1686]
[1743137565277,4.91052261,1935.3,1934.5,5.16908]
[1743137565487,4.91052261,1935.3,1934.7,5.16852]
[1743137565691,1.04932642,1935.1,1934.8,0.05167562]
[1743137565879,1.04932642,1935.1,1934.7,5.16852]
[1743137566075,1.04932642,1935.1,1934.7,10.33716]
[1743137566283,1.04932642,1935.1,1934.8,5.16846]
[1743137566473,7.906,1935.1,1935.0,5.16773]
[1743137566670,7.906,1935.1,1935.0,0.05167245]
[1743137566891,7.906,1935.1,1935.0,5.21962245]
[1743137567200,1.04777202,1935.2,1935.1,5.16769]
[1743137567700,7.905,1935.3,1935.2,5.16742]
[1743137568298,7.905,1935.9,1935.7,5.16598]
[1743137568490,1.34331897,1936.4,1935.8,5.16563]
[1743137568667,1.0588601,1936.1,1935.9,5.21702155]
[1743137568871,1.0588601,1936.1,1935.7,1.6175]
[1743137569078,1.0588601,1936.1,1935.6,5.16622]
[1743137569404,1.0588601,1936.1,1935.4,1.6175]
[1743137569604,11.91615295,1936.5,1935.5,0.05165015]
[1743137569805,11.91615295,1936.5,1935.6,5.16635]
[1743137570103,11.91615295,1936.5,1935.8,5.16579]
[1743137570307,11.91615295,1936.5,1935.7,5.16592]
[1743137570497,3.0,1936.4,1935.7,5.16592]
[1743137570694,0.3,1936.3,1935.9,5.16547]
[1743137571004,0.3,1936.3,1935.8,5.16571]
[1743137571206,0.3,1936.3,1935.4,1.6175]
[1743137571207,4.01215295,1936.1,1935.4,1.6175]
[1743137571408,4.01215295,1936.0,1935.2,5.16721]
[1743137571590,8.3022153,1935.9,1935.3,5.16702]
[1743137571785,1.05378238,1936.2,1935.1,1.6175]
[1743137571988,7.901,1936.1,1935.7,5.16594]
[1743137572180,7.901,1936.1,1935.8,5.16581]
[1743137572526,7.9,1936.1,1935.8,5.1657]
[1743137572679,7.9,1936.1,1935.9,5.16552]
[1743137572874,7.9,1936.1,1935.8,10.3314]
[1743137573099,4.01215295,1936.5,1935.8,10.33139]
[1743137573304,1.05132903,1936.2,1935.8,5.16569]
[1743137573615,1.05132903,1936.2,1935.8,10.3314]
[1743137573905,1.05132903,1936.2,1935.9,5.16553]
[1743137574409,7.9,1936.4,1936.0,0.0516475]
[1743137574623,7.9,1936.4,1936.0,5.2168775]
[1743137574913,1.05277871,1936.3,1936.0,5.2168775]
[1743137575281,7.898,1936.2,1935.8,4.01215295]
[1743137575480,7.898,1936.2,1936.1,5.16502]
[1743137576214,7.897,1936.2,1936.0,5.16507]
[1743137576711,7.897,1936.2,1936.0,10.33025]
[1743137576893,7.897,1936.2,1936.0,5.16507]
[1743137577285,7.897,1936.2,1936.0,10.33022]
[1743137577509,7.897,1936.2,1936.1,5.21666439]
[1743137577914,1.05277871,1936.3,1936.1,5.21666439]
[1743137578315,7.894,1936.2,1936.1,5.21666439]
[1743137578814,7.894,1936.2,1936.0,5.16507]
[1743137578992,7.894,1936.2,1935.7,1.6175]
[1743137579320,7.894,1936.2,1935.9,5.16544]
[1743137579496,7.894,1936.2,1936.0,0.05164643]
[1743137579900,7.894,1936.2,1935.8,5.16577]
[1743137580201,7.894,1936.2,1935.9,10.38250684]
[1743137580395,8.78867787,1936.2,1935.4,1.5184]
[1743137580597,4.01215295,1936.1,1935.3,5.16702]
[1743137581097,4.01215295,1935.9,1935.0,5.16795]
[1743137581298,4.01215295,1935.9,1935.1,5.16757]
[1743137581520,0.4012153,1935.8,1935.3,5.16714]
[1743137581819,0.4012153,1935.8,1935.2,5.16729]
[1743137581999,0.55,1936.0,1935.2,5.16729]
[1743137582199,1.04903502,1935.5,1935.2,10.33455]
[1743137582402,7.891,1935.4,1934.8,5.53055295]
[1743137582712,7.891,1935.4,1935.0,5.16772]
[1743137582903,7.891,1935.4,1935.1,5.16767]
[1743137583320,7.891,1935.4,1935.0,5.16772]
[1743137583696,7.891,1935.4,1934.9,5.16822]
[1743137583910,8.7850035,1935.4,1935.1,5.16755]
[1743137584121,7.891,1935.4,1935.0,5.16784]
[1743137584319,7.891,1935.4,1935.3,5.16715]
[1743137584522,1.04903502,1935.5,1935.4,5.16689]
[1743137584843,8.93903502,1935.5,1935.4,5.16689]
[1743137585052,8.93903502,1935.5,1935.3,5.16702]
[1743137585404,8.93903502,1935.5,1935.4,5.16689]
[1743137585705,8.93903502,1935.5,1935.2,5.16736]
[1743137585911,8.93903502,1935.5,1935.1,5.16744]
[1743137586116,9.83293852,1935.5,1935.0,5.16794]
[1743137586312,9.83293852,1935.5,1934.9,5.16809]
[1743137586713,9.83293852,1935.5,1935.0,5.16785]
[1743137586915,9.83293852,1935.5,1934.9,10.33633]
[1743137587121,9.83293852,1935.5,1935.0,5.16795]
[1743137587319,0.98329385,1935.4,1935.0,5.16795]
[1743137587537,0.98329385,1935.4,1934.9,5.16804]
[1743137587835,0.98329385,1935.4,1935.0,5.16784]
[1743137588037,8.93903502,1935.5,1935.3,5.16712]
[1743137588338,8.93703502,1935.5,1935.4,5.16689]
[1743137588735,8.93703502,1935.5,1935.2,4.01215295]
[1743137588736,8.93703502,1935.5,1935.2,5.16724]
[1743137588919,8.93703502,1935.5,1935.4,5.16689]
[1743137589517,8.93703502,1935.5,1935.3,5.16707]
[1743137589920,8.93703502,1935.5,1935.4,5.16689]
[1743137590738,8.93703502,1935.5,1935.3,5.16707]
[1743137591019,8.93703502,1935.5,1935.2,10.3345]
[1743137591244,9.83073852,1935.5,1934.8,5.16849]
[1743137591422,9.83073852,1935.5,1935.1,5.16747]
[1743137591816,8.93703502,1935.5,1935.1,5.16747]
[1743137592142,8.93703502,1935.5,1935.1,10.33505]
[1743137592322,8.93703502,1935.5,1935.0,5.1679]
[1743137592526,8.93703502,1935.5,1934.6,4.01215295]
[1743137592849,8.93703502,1935.5,1935.1,5.16745]
[1743137593146,4.01215295,1935.2,1934.0,1.5172]
[1743137593360,4.01215295,1934.7,1933.7,6.68838]
[1743137593564,7.885,1934.6,1933.8,0.05169927]
[1743137593715,9.07471529,1934.6,1933.8,0.05169927]
[1743137594224,9.07471529,1934.6,1933.9,5.17088]
[1743137594424,9.07471529,1934.6,1934.0,0.05169928]
[1743137594822,7.01215295,1934.5,1933.8,5.17099]
[1743137595027,7.01215295,1934.5,1933.9,0.05170248]
[1743137595517,7.884,1934.4,1933.9,0.05170248]
[1743137595733,7.884,1934.4,1933.8,5.17113]
[1743137596016,7.884,1934.4,1933.7,5.17123]
[1743137596238,7.884,1934.4,1933.8,5.17103]
[1743137596433,7.884,1934.4,1933.6,6.68889]
[1743137596610,7.884,1934.4,1933.7,5.17128]
[1743137596814,7.884,1934.4,1933.8,5.17112]
[1743137597448,7.884,1934.4,1933.7,5.17124]
[1743137597647,4.01215295,1934.3,1933.7,5.17131]
[1743137597812,4.01215295,1934.5,1933.8,5.17098]
[1743137598020,8.2852153,1934.4,1933.9,0.05170275]
[1743137598214,7.884,1934.4,1933.9,10.34147]
[1743137598452,7.884,1934.4,1934.0,0.05170031]
[1743137598935,7.883,1934.3,1934.2,5.16989]
[1743137599518,7.883,1934.3,1934.1,5.22022]
[1743137599718,12.94773542,1934.3,1934.1,0.05]
[1743137599949,12.94773542,1934.3,1934.1,5.22035]
[1743137600448,12.94773542,1934.3,1934.1,0.05]
[1743137600625,8.93558247,1934.3,1934.1,5.22013]
[1743137601227,8.93558247,1934.3,1934.2,5.22178622]
[1743137601443,1.05258247,1934.3,1934.2,6.81469]
[1743137601751,7.882,1934.5,1934.4,5.16956]
[1743137601946,4.01215295,1934.8,1934.2,1.6446]
[1743137602146,7.882,1934.5,1934.4,5.16956]
[1743137602449,7.882,1934.5,1934.3,5.16956]
[1743137602767,7.882,1934.5,1934.3,10.33926]
[1743137602917,7.882,1934.5,1934.3,10.33927]
[1743137603130,4.01215295,1934.4,1934.1,0.05]
[1743137603341,11.89415295,1934.5,1934.1,0.05]
[1743137603523,11.89415295,1934.5,1934.2,5.16993]
[1743137603924,11.89415295,1934.5,1934.2,5.16988]
[1743137604450,11.89415295,1934.5,1934.1,5.22034]
[1743137604627,11.89415295,1934.5,1934.1,0.05]
[1743137605326,11.89415295,1934.5,1934.1,5.22035]
[1743137605728,11.89415295,1934.5,1934.1,5.22031]
[1743137605922,11.89415295,1934.5,1934.1,0.05]
[1743137606459,11.89415295,1934.5,1934.1,5.22028]
[1743137606630,11.89415295,1934.5,1934.1,0.05]
[1743137606830,11.89415295,1934.5,1934.1,0.10169776]
[1743137607029,11.89415295,1934.5,1934.1,5.27180776]
[1743137607231,11.89415295,1934.5,1934.2,5.16998]
[1743137607431,11.89415295,1934.5,1934.2,10.33988]